bitfinex/quotes_SOLUSD_20220210
["timestamp","ask_amount","ask_price","bid_price","bid_amount"]
[1644526931738,50.5458605,108.81,108.75,13.7947]
[1644526931937,59.8068605,108.81,108.74,13.8201]
[1644526932137,4.596,108.8,108.74,0.024]
[1644526932339,4.596,108.8,108.72,0.024]
[1644526932538,59.8068605,108.81,108.72,0.024]
[1644526932738,46.97258384,108.79,108.72,0.024]
[1644526932938,38.78139735,108.77,108.7,13.8237]
[1644526933138,38.78139735,108.77,108.7,13.7997]
[1644526933139,49.66839735,108.77,108.7,13.7997]
[1644526933337,63.46999735,108.77,108.68,0.024]
[1644526933542,68.06799735,108.77,108.68,0.024]
[1644526934440,63.46999735,108.77,108.68,0.024]
[1644526934739,63.46999735,108.77,108.69,13.802]
[1644526934940,90.79139735,108.77,108.69,22.28241394]
[1644526935240,38.78139735,108.77,108.7,1.78972817]
[1644526935440,38.78139735,108.77,108.7,1.81372817]
[1644526935639,38.78139735,108.77,108.7,2.06372817]
[1644526935840,38.78139735,108.77,108.71,1.78972817]
[1644526936243,53.3227,108.81,108.71,2.03972817]
[1644526936540,53.3227,108.81,108.72,15.61002817]
[1644526936744,48.7247,108.81,108.73,0.024]
[1644526937142,43.78546651,108.8,108.73,0.024]
[1644526937545,43.78546651,108.8,108.72,1.81372817]
[1644526937746,54.38246651,108.8,108.74,13.7947]
[1644526937944,49.78546651,108.8,108.74,13.7947]
[1644526938342,43.78546651,108.8,108.74,13.7947]
[1644526938843,4.596,108.83,108.74,15.83442817]
[1644526939047,52.1911,108.84,108.74,26.64842817]
[1644526939254,4.596,108.84,108.77,13.7897]
[1644526939546,4.595,108.86,108.77,13.7897]
[1644526939747,35.10701845,108.85,108.78,0.024]
[1644526939945,35.10701845,108.85,108.77,2.06372817]
[1644526940746,35.10701845,108.85,108.79,13.789]
[1644526941648,39.70101845,108.85,108.77,0.024]
[1644526941850,45.70101845,108.85,108.77,0.024]
[1644526942047,45.70101845,108.85,108.78,1.78972817]
[1644526942247,35.10701845,108.85,108.78,2.03972817]
[1644526942447,35.10701845,108.85,108.77,0.024]
[1644526942648,45.70201845,108.85,108.77,0.024]
[1644526942849,59.49301845,108.85,108.78,13.7902]
[1644526943049,54.89801845,108.85,108.78,13.7902]
[1644526943250,54.89801845,108.85,108.77,0.024]
[1644526943460,4.595,108.84,108.77,0.024]
[1644526943649,4.595,108.84,108.75,0.024]
[1644526944049,42.2077973,108.83,108.76,13.7929]
[1644526944251,42.2077973,108.83,108.76,15.85662817]
[1644526944453,42.2077973,108.83,108.77,1.78972817]
[1644526944951,42.2077973,108.83,108.76,0.024]
[1644526945157,42.2077973,108.83,108.78,13.7895]
[1644526945350,42.2077973,108.83,108.76,0.024]
[1644526945554,42.2077973,108.83,108.75,47.75582817]
[1644526945555,42.2077973,108.83,108.75,47.77982817]
[1644526945752,42.2077973,108.83,108.75,1.81372817]
[1644526945953,42.2077973,108.83,108.75,0.024]
[1644526946351,42.2077973,108.83,108.75,13.8171]
[1644526946752,42.2077973,108.83,108.75,14.0671]
[1644526947354,42.2077973,108.83,108.75,15.85682817]
[1644526947755,48.2077973,108.83,108.75,15.85682817]
[1644526948356,42.2077973,108.83,108.75,15.85682817]
[1644526948856,42.2077973,108.83,108.75,15.60682817]
[1644526949256,42.2077973,108.83,108.75,15.85682817]
[1644526951459,42.2077973,108.83,108.75,32.64682817]
[1644526951857,42.2077973,108.83,108.75,26.64682817]
[1644526952058,42.2077973,108.83,108.75,32.64682817]
[1644526953962,18.3864,108.86,108.75,32.64682817]
[1644526954162,193.9578,108.94,108.76,2.43055362]
[1644526954163,54.1344,108.91,108.76,2.43055362]
[1644526954464,4.595,108.91,108.8,13.7809]
[1644526954664,4.593,108.95,108.81,10.814]
[1644526954867,79.0107,108.96,108.82,0.024]
[1644526955066,46.12223287,108.95,108.83,10.79]
[1644526955363,47.53576415,108.93,108.83,18.85372817]
[1644526955564,47.53576415,108.93,108.83,17.064]
[1644526955762,47.53576415,108.93,108.85,13.7794]
[1644526956163,47.53576415,108.93,108.85,15.81912817]
[1644526956863,47.53576415,108.93,108.85,2.03972817]
[1644526958468,47.53576415,108.93,108.85,1.78972817]
[1644526958671,61.31576415,108.93,108.84,10.79]
[1644526958872,61.31576415,108.93,108.84,11.04]
[1644526959374,67.31576415,108.93,108.84,11.04]
[1644526959574,69.54698569,108.93,108.84,11.04]
[1644526959974,4.591,108.92,108.84,10.79]
[1644526960275,52.61916481,108.91,108.83,1.78983118]
[1644526960475,52.61916481,108.91,108.83,1.81383118]
[1644526961073,38.83576481,108.91,108.83,1.81383118]
[1644526961374,38.83576481,108.91,108.84,10.79]
[1644526961573,38.83576481,108.91,108.84,19.423]
[1644526961774,4.591,108.95,108.85,1.78983118]
[1644526961973,4.591,108.95,108.86,10.79]
[1644526962374,4.591,108.95,108.86,32.60573118]
[1644526962674,10.591,108.95,108.86,32.60573118]
[1644526962875,46.45841772,108.94,108.86,32.60573118]
[1644526963073,46.45841772,108.94,108.86,18.82983118]
[1644526963273,52.45841772,108.94,108.86,18.82983118]
[1644526964073,46.45841772,108.94,108.86,18.82983118]
[1644526965499,46.45841772,108.94,108.86,31.89121654]
[1644526966496,46.45841772,108.94,108.86,30.10138536]
[1644526966697,46.45841772,108.94,108.86,43.87768536]
[1644526968001,46.45841772,108.94,108.87,4.591]
[1644526968197,46.45841772,108.94,108.89,13.7715]
[1644526968400,46.45841772,108.94,108.9,4.59]
[1644526968597,46.45841772,108.94,108.89,30.8115]
[1644526968797,47.4632,108.97,108.89,30.8115]
[1644526968997,50.4997,109.0,108.89,30.8115]
[1644526969399,56.4997,109.0,108.89,30.8115]
[1644526969800,36.60497707,108.99,108.89,30.8115]
[1644526972007,50.37727707,108.99,108.89,17.04]
[1644526972815,52.60849861,108.99,108.88,4.59]
[1644526973006,58.60849861,108.99,108.88,4.59]
[1644526973207,69.39849861,108.99,108.88,4.59]
[1644526973513,109.34572515,108.99,108.88,4.59]
[1644526973707,35.27012083,108.97,108.88,4.59]
[1644526973908,41.58632735,108.94,108.88,4.59]
[1644526974110,125.0,108.93,108.83,0.024]
[1644526974311,46.88570644,108.92,108.83,0.024]
[1644526974511,69.47260644,108.92,108.83,0.024]
[1644526974911,13.7822,108.91,108.83,0.024]
[1644526975111,38.4246,108.91,108.81,0.024]
[1644526975311,2.23122154,108.9,108.82,0.024]
[1644526975512,35.01043164,108.89,108.82,0.024]
[1644526975714,35.01043164,108.89,108.76,0.024]
[1644526975914,37.24165318,108.89,108.76,0.024]
[1644526976414,13.7903,108.88,108.76,0.024]
[1644526976614,39.13198741,108.87,108.76,0.024]
[1644526976813,85.53988741,108.87,108.76,0.024]
[1644526977816,13.7917,108.84,108.76,0.024]
[1644526978017,34.42763736,108.83,108.76,0.024]
[1644526978216,34.42763736,108.83,108.75,14.29]
[1644526979317,34.42763736,108.83,108.76,10.79]
[1644526979519,34.42763736,108.83,108.76,10.814]
[1644526979719,34.42763736,108.83,108.76,0.274]
[1644526980318,34.42763736,108.83,108.76,11.064]
[1644526981121,34.42763736,108.83,108.76,17.064]
[1644526981319,34.42763736,108.83,108.76,11.064]
[1644526982219,34.42763736,108.83,108.76,17.064]
[1644526982620,34.42763736,108.83,108.76,11.064]
[1644526982820,34.42763736,108.83,108.76,17.064]
[1644526983022,34.42763736,108.83,108.76,11.064]
[1644526983422,34.42763736,108.83,108.76,17.064]
[1644526983821,34.42763736,108.83,108.76,11.064]
[1644526986126,34.42763736,108.83,108.76,10.814]
[1644526986325,34.42763736,108.83,108.76,10.79]
[1644526987428,34.42763736,108.83,108.76,11.04]
[1644526988226,40.42763736,108.83,108.76,11.04]
[1644526988628,34.42763736,108.83,108.76,11.04]
[1644526990629,34.42763736,108.83,108.76,11.064]
[1644526991729,34.42763736,108.83,108.76,0.274]
[1644526992129,48.22013736,108.83,108.76,0.024]
[1644526992332,54.22013736,108.83,108.73,10.814]
[1644526992531,40.42763736,108.83,108.73,10.814]
[1644526992730,40.42763736,108.83,108.74,0.024]
[1644526992929,40.42763736,108.83,108.74,10.814]
[1644526993129,34.42763736,108.83,108.75,59.40259285]
[1644526993333,34.42763736,108.83,108.76,10.79]
[1644526993632,34.42763736,108.83,108.76,10.814]
[1644526993835,34.42763736,108.83,108.76,17.064]
[1644526994033,34.42763736,108.83,108.76,11.064]
[1644526994237,34.42763736,108.83,108.78,13.7888]
[1644526994633,34.42763736,108.83,108.78,14.0388]
[1644526995838,34.42763736,108.83,108.78,20.0388]
[1644526996037,37.0085,108.87,108.78,14.0388]
[1644526996238,24.7701,108.9,108.79,10.79]
[1644526996443,24.7701,108.9,108.79,22.86986434]
[1644526996636,24.7701,108.9,108.82,13.781]
[1644526996837,24.7701,108.9,108.83,10.79]
[1644526997037,35.3538418,108.89,108.83,10.79]
[1644526997338,35.3538418,108.89,108.83,11.04]
[1644526997537,22.6665,108.92,108.83,12.85686434]
[1644526997741,22.6665,108.92,108.83,40.51946434]
[1644526998140,23.658,108.93,108.83,53.5808497]
[1644526998539,36.11030355,108.92,108.84,36.0987841]
[1644526998763,36.11030355,108.92,108.86,13.7757]
[1644526999070,60.725,108.96,108.86,38.04971211]
[1644526999272,46.9492,108.96,108.86,54.43257645]
[1644526999664,46.9492,108.96,108.86,63.18307783]
[1644527000264,77.6312,109.02,108.86,89.75061062]
[1644527001066,45.5183,109.01,108.86,89.75061062]
[1644527001266,42.42705622,108.99,108.86,89.75061062]
[1644527001670,48.42705622,108.99,108.86,89.75061062]
[1644527001866,48.42705622,108.99,108.86,41.13306572]
[1644527002070,50.65827776,108.99,108.86,32.38256434]
[1644527002270,50.65827776,108.99,108.86,24.5657]
[1644527002468,48.42705622,108.99,108.86,26.38256434]
[1644527002670,48.42705622,108.99,108.86,32.38256434]
[1644527002868,73.27825622,108.99,108.86,79.64662783]
[1644527003077,87.05125622,108.99,108.86,79.64662783]
[1644527003268,87.05125622,108.99,108.86,79.89662783]
[1644527003869,87.05125622,108.99,108.86,92.95801319]
[1644527004170,67.27825622,108.99,108.86,115.214662]
[1644527004368,67.27825622,108.99,108.86,206.914662]
[1644527005172,67.27825622,108.99,108.86,115.214662]
[1644527005370,73.27825622,108.99,108.86,115.214662]
[1644527006169,67.27825622,108.99,108.86,206.914662]
[1644527008273,67.27825622,108.99,108.86,341.814662]
[1644527011784,42.42705622,108.99,108.89,134.9]
[1644527012084,4.59,109.0,108.92,13.7644]
[1644527012286,4.59,109.0,108.93,10.79]
[1644527012482,4.59,109.0,108.93,12.60686434]
[1644527012682,4.59,109.0,108.94,1.81686434]
[1644527012882,40.93491854,109.0,108.94,54.52882729]
[1644527013883,40.93491854,109.0,108.95,13.764]
[1644527014083,4.59,109.0,108.96,10.79]
[1644527014290,4.59,109.0,108.96,26.587]
[1644527014486,4.59,109.0,108.96,28.40386434]
[1644527014687,4.59,109.0,108.97,1.81686434]
[1644527014888,4.59,109.0,108.98,10.79]
[1644527015087,4.59,109.0,108.98,24.70083326]
[1644527015289,4.59,109.0,108.99,1.81686434]
[1644527015688,4.59,109.0,108.99,2.06686434]
[1644527016886,4.59,109.0,108.99,15.82716434]
[1644527017087,4.59,109.0,108.99,15.9944724]
[1644527018388,43.10856124,109.03,108.99,15.9944724]
[1644527018590,4.586,109.02,108.99,15.9944724]
[1644527018789,4.586,109.02,109.0,15.57736434]
[1644527018989,4.586,109.02,109.01,0.16730806]
[1644527020191,43.10856124,109.03,109.01,0.16730806]
[1644527021195,4.586,109.04,109.01,0.16730806]
[1644527021390,23.3433,109.05,109.01,13.92720806]
[1644527021591,4.586,109.07,109.01,15.7440724]
[1644527021792,4.586,109.07,109.01,15.9940724]
[1644527022193,4.585,109.08,109.02,46.52518152]
[1644527022396,42.05531258,109.09,109.03,13.7549]
[1644527022592,71.1696557,109.1,109.03,13.7549]
[1644527022593,47.8034,109.1,109.04,18.43061469]
[1644527022794,4.583,109.11,109.04,20.49747903]
[1644527022999,0.0378557,109.13,109.05,10.79]
[1644527023000,4.583,109.12,109.05,10.79]
[1644527023194,4.583,109.14,109.06,4.583]
[1644527023394,0.0378557,109.14,109.07,10.79]
[1644527023594,4.6198557,109.15,109.08,18.3297]
[1644527023795,0.0378557,109.14,109.09,92.33858152]
[1644527023994,43.5579201,109.15,109.1,4.582]
[1644527024205,48.1389201,109.15,109.1,10.79]
[1644527024494,48.1389201,109.15,109.1,11.04]
[1644527024694,43.5579201,109.15,109.1,15.371]
[1644527024923,4.581,109.14,109.1,24.534]
[1644527025121,41.00616037,109.13,109.1,24.534]
[1644527025321,41.00616037,109.13,109.11,0.16730806]
[1644527025721,7.61419997,109.12,109.11,0.16730806]
[1644527025923,10.47909188,109.12,109.07,6.0]
[1644527026123,47.68863159,109.11,109.05,21.622]
[1644527026323,47.68863159,109.11,109.05,15.622]
[1644527027424,4.583,109.1,109.05,11.04]
[1644527027824,4.583,109.1,109.07,13.7531]
[1644527028025,47.68863159,109.11,109.08,0.16730806]
[1644527029426,0.0378557,109.14,109.08,13.91900806]
[1644527029626,4.582,109.13,109.08,13.91900806]
[1644527029827,0.0378557,109.15,109.08,31.35339878]
[1644527030026,1.28932331,109.17,109.08,31.35339878]
[1644527030027,4.6198557,109.17,109.08,31.35339878]
[1644527030227,0.0378557,109.16,109.08,37.35339878]
[1644527030426,45.3282696,109.16,109.09,34.76037764]
[1644527030727,4.581,109.15,109.11,28.56811857]
[1644527031126,4.581,109.15,109.11,28.81811857]
[1644527031527,4.581,109.15,109.11,13.9957]
[1644527031928,4.581,109.15,109.11,13.7457]
[1644527033531,54.12904843,109.16,109.11,13.7457]
[1644527033931,6.0,109.16,109.11,27.24125949]
[1644527034329,4.6188557,109.17,109.11,13.9957]
[1644527034530,4.581,109.17,109.11,13.9957]
[1644527035430,45.28118005,109.16,109.11,13.9957]
[1644527039632,45.28118005,109.16,109.11,13.7457]
[1644527040032,4.581,109.15,109.11,13.7457]
[1644527040233,45.28118005,109.16,109.11,13.9957]
[1644527041836,0.0378557,109.17,109.11,13.9957]
[1644527042136,0.0378557,109.19,109.12,95.79]
[1644527042336,0.0378557,109.2,109.14,13.7374]
[1644527042536,0.0378557,109.21,109.15,10.79]
[1644527042736,0.0378557,109.23,109.16,36.0790038]
[1644527042939,0.0378557,109.22,109.17,10.79]
[1644527043137,0.0378557,109.25,109.17,44.89277563]
[1644527043337,0.0378557,109.26,109.18,26.79278536]
[1644527043536,120.40232289,109.33,109.19,10.79]
[1644527043537,0.0378557,109.28,109.19,10.79]
[1644527043738,0.0378557,109.29,109.2,45.758]
[1644527043941,0.0378557,109.29,109.21,15.365]
[1644527044140,46.82970523,109.31,109.22,13.50379241]
[1644527044340,46.82970523,109.31,109.23,10.79]
[1644527044541,46.79184953,109.31,109.24,13.727]
[1644527044741,37.30841951,109.29,109.24,35.342]
[1644527045040,37.30841951,109.29,109.24,30.767]
[1644527045240,37.30841951,109.29,109.24,24.767]
[1644527045643,37.30841951,109.29,109.24,60.8460038]
[1644527045842,37.30841951,109.29,109.24,66.8460038]
[1644527046042,37.30841951,109.29,109.24,30.767]
[1644527047243,37.30841951,109.29,109.24,24.517]
[1644527047450,4.575,109.28,109.22,24.5236]
[1644527047644,4.575,109.28,109.22,13.7336]
[1644527048146,43.58233202,109.27,109.22,13.7336]
[1644527048846,43.58233202,109.27,109.22,13.9836]
[1644527049444,29.0766557,109.3,109.22,13.9836]
[1644527049644,29.0766557,109.3,109.22,19.9836]
[1644527049844,29.0766557,109.3,109.22,21.80651677]
[1644527050045,29.0388,109.3,109.22,21.80651677]
[1644527050444,44.28175274,109.29,109.22,59.97131328]
[1644527050645,44.28175274,109.29,109.22,19.9836]
[1644527050845,44.28175274,109.29,109.22,21.80651677]
[1644527051684,4.575,109.28,109.22,21.80651677]
[1644527051874,42.11236785,109.27,109.22,13.7336]
[1644527052075,4.575,109.26,109.22,13.7336]
[1644527052576,4.575,109.26,109.22,13.9836]
[1644527053577,42.11236785,109.27,109.22,13.9836]
[1644527053976,4.6148557,109.29,109.22,27.32962584]
[1644527054176,4.577,109.29,109.22,35.15254261]
[1644527054375,29.0388,109.3,109.25,13.728]
[1644527054576,24.4638,109.3,109.25,33.926]
[1644527054776,24.4638,109.3,109.25,40.176]
[1644527054976,0.0378557,109.32,109.25,41.99891677]
[1644527055177,65.07267054,109.33,109.26,36.23677037]
[1644527055379,22.9802,109.33,109.27,24.5139]
[1644527055677,22.9802,109.33,109.27,26.33681677]
[1644527055879,28.9802,109.33,109.28,1.82291677]
[1644527056278,70.21523965,109.33,109.28,8.07291677]
[1644527056578,70.21523965,109.33,109.29,13.7231]
[1644527056779,47.23503965,109.33,109.29,13.7231]
[1644527057078,4.574,109.32,109.26,10.79]
[1644527057279,4.574,109.32,109.26,11.04]
[1644527057780,43.24010935,109.31,109.26,11.04]
[1644527058880,43.24010935,109.31,109.27,13.7273]
[1644527059280,4.574,109.3,109.27,13.7273]
[1644527059680,3.03219997,109.29,109.27,13.7273]
[1644527059881,5.89709188,109.29,109.27,13.7273]
[1644527060083,5.89709188,109.29,109.25,13.73]
[1644527060084,48.80204741,109.28,109.25,13.73]
[1644527060383,4.575,109.27,109.2,10.79]
[1644527060585,53.5645,109.27,109.2,10.79]
[1644527060785,53.5645,109.27,109.2,17.04]
[1644527060987,53.5645,109.27,109.2,56.8187]
[1644527061186,44.23252026,109.26,109.2,62.8187]
[1644527061587,44.23252026,109.26,109.2,62.5687]
[1644527063187,44.23252026,109.26,109.2,56.5687]
[1644527063387,48.80952026,109.26,109.2,56.5687]
[1644527063788,48.80952026,109.26,109.2,56.8187]
[1644527064589,44.23252026,109.26,109.2,56.8187]
[1644527065191,44.23252026,109.26,109.2,13.736]
[1644527065395,4.577,109.25,109.2,13.736]
[1644527065892,48.55233707,109.24,109.2,13.736]
[1644527067796,48.55233707,109.24,109.16,10.79]
[1644527067995,38.29447041,109.22,109.14,10.79]
[1644527068398,38.29447041,109.22,109.14,11.04]
[1644527068399,38.33232611,109.22,109.14,11.04]
[1644527068600,38.29447041,109.22,109.14,11.04]
[1644527068999,38.29447041,109.22,109.14,17.70785127]
[1644527069199,38.33232611,109.22,109.17,13.7412]
[1644527069399,38.29447041,109.22,109.17,13.7412]
[1644527069699,106.0,109.19,109.15,10.79]
[1644527069935,113.348,109.19,109.12,10.79]
[1644527070101,4.581,109.18,109.1,6.0]
[1644527070401,0.0378557,109.18,109.13,13.7463]
[1644527070601,40.06685697,109.18,109.13,13.7463]
[1644527071304,40.06685697,109.18,109.13,13.9963]
[1644527072300,40.06685697,109.18,109.13,13.7463]
[1644527073502,44.64685697,109.18,109.13,13.7463]
[1644527075604,50.64685697,109.18,109.13,13.7463]
[1644527075805,46.06685697,109.18,109.13,13.7463]
[1644527076711,4.58,109.17,109.09,45.8251]
[1644527076904,28.9618,109.17,109.09,45.8251]
[1644527077106,28.9996557,109.17,109.09,45.8251]
[1644527077503,28.9996557,109.17,109.08,10.79]
[1644527077504,42.47874181,109.16,109.08,10.79]
[1644527077708,34.84030565,109.14,109.08,10.79]
[1644527077905,34.84030565,109.14,109.09,13.7496]
[1644527078604,4.6198557,109.16,109.09,13.7496]
[1644527078806,24.3818,109.17,109.09,39.42382728]
[1644527079007,24.4196557,109.17,109.09,39.42382728]
[1644527079405,24.3818,109.17,109.09,45.67382728]
[1644527079606,42.99421809,109.16,109.09,91.91882897]
[1644527080305,0.0378557,109.18,109.09,78.85744361]
[1644527080708,0.0378557,109.18,109.09,183.61882897]
[1644527081311,0.0378557,109.18,109.09,205.15303889]
[1644527081509,0.0378557,109.18,109.09,340.05303889]
[1644527081711,0.0378557,109.21,109.09,340.05303889]
[1644527081909,6.0,109.22,109.09,340.05303889]
[1644527082106,0.0378557,109.22,109.09,340.05303889]
[1644527082508,36.51066342,109.22,109.09,340.05303889]
[1644527083109,0.0378557,109.22,109.09,219.20953889]
[1644527083308,0.0378557,109.22,109.13,13.7341]
[1644527083515,4.6178557,109.26,109.14,102.49]
[1644527083807,0.0378557,109.25,109.15,4.578]
[1644527084106,0.0378557,109.25,109.16,29.69183643]
[1644527084107,44.06233438,109.25,109.16,29.69183643]
[1644527084308,44.06233438,109.25,109.16,35.94183643]
[1644527084506,44.06233438,109.25,109.18,40.95122798]
[1644527084706,44.02447868,109.25,109.2,13.7338]
[1644527088310,44.02447868,109.25,109.2,13.9838]
[1644527091916,44.02447868,109.25,109.2,13.7338]
[1644527092314,44.02447868,109.25,109.2,13.9838]
[1644527094216,44.02447868,109.25,109.2,13.7338]
[1644527094418,44.02447868,109.25,109.2,13.9838]
[1644527094816,44.02447868,109.25,109.2,19.9838]
[1644527095016,44.02447868,109.25,109.2,19.7338]
[1644527095217,44.02447868,109.25,109.2,13.7338]
[1644527095717,44.02447868,109.25,109.2,13.9838]
[1644527096119,44.02447868,109.25,109.2,19.9838]
[1644527096319,44.02447868,109.25,109.2,44.85741029]
[1644527096718,44.02447868,109.25,109.22,13.7317]
[1644527096920,44.02447868,109.25,109.23,0.16730806]
[1644527097919,44.02447868,109.25,109.24,13.7313]
[1644527098619,44.02447868,109.25,109.24,13.9813]
[1644527098819,44.02447868,109.25,109.24,13.7313]
[1644527100120,44.02447868,109.25,109.24,13.9813]
[1644527100319,47.7096,109.27,109.24,13.7313]
[1644527100520,4.575,109.29,109.25,0.16730806]
[1644527100720,4.6128557,109.3,109.25,0.16730806]
[1644527100919,4.6128557,109.31,109.25,13.89860806]
[1644527101120,4.575,109.31,109.25,13.89860806]
[1644527101323,40.91667051,109.29,109.25,13.89860806]
[1644527103326,40.91667051,109.29,109.25,14.14860806]
[1644527105629,40.91667051,109.29,109.25,13.89860806]
[1644527107240,4.575,109.28,109.25,13.89860806]
[1644527107453,50.44813931,109.27,109.25,13.89860806]
[1644527107653,50.44813931,109.27,109.25,13.7313]
[1644527108052,50.44813931,109.27,109.26,0.16730806]
[1644527108452,50.44813931,109.27,109.25,13.7313]
[1644527108855,47.5832474,109.27,109.25,13.7313]
[1644527109055,2.86489191,109.26,109.25,13.7313]
[1644527109255,5.89709188,109.26,109.25,13.7313]
[1644527111958,5.89709188,109.26,109.25,13.89860806]
[1644527112159,3.03219997,109.26,109.25,13.89860806]
[1644527112361,3.03219997,109.26,109.25,13.7313]
[1644527112761,44.55104743,109.27,109.25,13.7313]
[1644527113762,44.55104743,109.27,109.24,13.7331]
[1644527114163,44.55104743,109.27,109.2,56.5707]
[1644527114364,7.60919997,109.26,109.11,52.19380543]
[1644527114565,30.51529997,109.26,109.11,184.5077]
[1644527114770,30.55409717,109.26,109.12,1.82282503]
[1644527114988,30.55409717,109.26,109.12,12.61282503]
[1644527115164,71.04700461,109.25,109.18,13.7395]
[1644527115366,46.24250688,109.23,109.18,13.7395]
[1644527115567,46.24250688,109.23,109.18,19.7395]
[1644527115966,46.24250688,109.23,109.18,13.7395]
[1644527117769,52.24250688,109.23,109.18,13.7395]
[1644527117968,46.24250688,109.23,109.18,13.7395]
[1644527119171,4.578,109.22,109.18,13.7395]
[1644527119371,46.24250688,109.23,109.18,13.7395]
[1644527119574,44.08340135,109.21,109.18,13.7395]
[1644527119772,5.89709188,109.2,109.18,13.7395]
[1644527120575,40.70711751,109.19,109.18,13.7395]
[1644527121274,40.70711751,109.19,109.17,13.7418]
[1644527121474,3.03219997,109.18,109.17,13.7418]
[1644527121675,3.03219997,109.18,109.15,10.79]
[1644527121874,45.61617371,109.17,109.15,10.79]
[1644527122275,45.61617371,109.17,109.16,13.743]
[1644527122676,48.64837368,109.17,109.16,13.743]
[1644527123276,51.51326559,109.17,109.16,13.743]
[1644527124076,51.51326559,109.17,109.14,10.79]
[1644527124275,51.51326559,109.17,109.15,13.7442]
[1644527124475,51.51326559,109.17,109.13,45.8099]
[1644527124476,51.51326559,109.17,109.13,10.79]
[1644527124676,51.51326559,109.17,109.11,12.61282503]
[1644527124877,63.11226559,109.17,109.11,12.61282503]
[1644527125179,36.73309327,109.15,109.09,10.79]
[1644527125876,4.582,109.14,109.09,10.79]
[1644527126276,41.62021424,109.13,109.09,10.79]
[1644527126877,41.62021424,109.13,109.07,10.79]
[1644527127075,46.20221424,109.13,109.07,10.79]
[1644527127277,46.20221424,109.13,109.05,10.79]
[1644527127476,41.62021424,109.13,109.05,10.79]
[1644527128083,41.62021424,109.13,109.06,13.7535]
[1644527128678,39.3679191,109.11,109.07,10.79]
[1644527128876,39.3679191,109.11,109.07,11.04]
[1644527129077,39.3679191,109.11,109.08,1.82282503]
[1644527129281,39.3679191,109.11,109.09,13.87818848]
[1644527131380,39.3679191,109.11,109.09,0.12818848]
[1644527133083,42.40011907,109.11,109.09,0.12818848]
[1644527133482,2.86489191,109.1,109.09,0.12818848]
[1644527133711,42.40011907,109.11,109.07,24.5422]
[1644527137387,42.40011907,109.11,109.07,10.79]
[1644527137584,42.40011907,109.11,109.05,24.5448]
[1644527140184,48.40011907,109.11,109.05,24.5448]
[1644527140385,4.583,109.1,109.05,24.5448]
[1644527140588,39.3679191,109.11,109.05,24.7948]
[1644527140789,39.3679191,109.11,109.05,26.61762503]
[1644527140986,39.3679191,109.11,109.07,13.7498]
[1644527141220,39.3679191,109.11,109.08,10.79]
[1644527141588,39.3679191,109.11,109.08,11.04]
[1644527142089,2.86489191,109.1,109.08,11.04]
[1644527142788,2.86489191,109.1,109.09,13.75]
[1644527142987,39.3679191,109.11,109.09,13.89382884]
[1644527143589,39.3679191,109.11,109.09,24.68382884]
[1644527144590,5.89709188,109.1,109.09,24.54]
[1644527145196,3.03219997,109.1,109.09,24.54]
[1644527145393,39.3679191,109.11,109.09,24.68382884]
[1644527146199,24.2664,109.12,109.09,24.68382884]
[1644527146395,22.5508,109.15,109.09,24.68382884]
[1644527146695,22.5508,109.15,109.09,26.75665387]
[1644527147696,70.46561365,109.16,109.09,26.75665387]
[1644527147897,76.46561365,109.16,109.09,26.75665387]
[1644527148398,76.46561365,109.16,109.09,71.4973976]
[1644527148597,76.46561365,109.16,109.09,26.75665387]
[1644527150100,43.7204593,109.14,109.09,49.52343905]
[1644527150701,43.7204593,109.14,109.09,26.75665387]
[1644527151109,43.7204593,109.14,109.09,24.93382884]
[1644527151507,43.7204593,109.14,109.09,24.68382884]
[1644527154704,4.582,109.13,109.09,24.68382884]
[1644527155110,73.0,109.12,109.08,10.79]
[1644527155303,73.0,109.12,109.06,10.79]
[1644527155304,4.582,109.11,109.06,10.79]
[1644527155507,35.01137813,109.1,109.06,10.79]
[1644527156725,35.01137813,109.1,109.07,13.7538]